fUST/lending_fUST_20250501
["ID","MTS","AMOUNT","RATE_DAILY","PERIOD"]
[359468283,1746043865719,-151.0,0.00040276,14]
[359468284,1746043865728,-213.715885,0.00040276,14]
[359468285,1746043865738,-374952.92083441,0.00040276,2]
[359468286,1746043865748,-41154.24419285,0.00040276,3]
[359468287,1746043865758,-1385782.2024159,0.00040276,20]
[359468288,1746043865903,-8490.0,0.00040276,20]
[359468289,1746043865915,-9636.21941732,0.00040276,20]
[359468290,1746043865927,-1762.31601514,0.00040276,20]
[359468291,1746043865938,-1538.0126962,0.00040276,20]
[359468292,1746043865950,-2797.89910243,0.00040276,20]
[359468293,1746043865961,-7535.2753021,0.00040276,20]
[359468294,1746043865973,-55849.15807841,0.00040276,20]
[359468295,1746043866015,-400.0,0.00038356,12]
[359468296,1746043866026,-400.0,0.00039779,12]
[359468297,1746043866035,-400.0,0.00040099,12]
[359468298,1746043866045,-400.0,0.00040099,12]
[359468299,1746043866056,-11728.26164873,0.00040276,20]
[359468300,1746043866067,-512.37431689,0.00040276,20]
[359468301,1746043866078,-6538.28638983,0.00040276,20]
[359468302,1746043866089,-1273.90242,0.00040276,20]
[359468303,1746043866100,-340.365,0.00040276,20]
[359468304,1746043866181,-400.0,0.00038356,12]
[359468305,1746043866190,-1.32949645,0.00038356,12]
[359468306,1746043866202,-398.67050355,0.00038356,12]
[359468307,1746043866211,-260.62021785,0.00038356,12]
[359468308,1746043866222,-139.37978215,0.00038356,12]
[359468309,1746043866231,-459.28,0.00038356,12]
[359468310,1746043866241,-535.69647275,0.00040196,12]
[359468311,1746043866250,-151.0,0.00040197,14]
[359468312,1746043866259,-240.54488694,0.00040197,14]
[359468313,1746043866269,-78463.00833946,0.00040276,20]
[359468314,1746043866352,-160.0,0.00038346,3]
[359468315,1746043866362,-400.0,0.00039779,12]
[359468316,1746043866371,-400.0,0.00039779,12]
[359468317,1746043866380,-400.0,0.00040099,12]
[359468318,1746043866390,-505.16018732,0.00040099,12]
[359468319,1746043866399,-450.33648162,0.00040099,12]
[359468320,1746043866409,-1278.20333106,0.00040276,20]
[359468321,1746043866420,-1383.54627258,0.00040276,20]
[359468322,1746043866431,-807.18846441,0.00040276,20]
[359468323,1746043866442,-93294.79815524,0.00040276,20]
[359468324,1746043866453,-4704.0,0.00040276,20]
[359468325,1746043866593,3682.13710395,0.00031653,2]
[359468326,1746043866614,4103.65523424,0.00031653,2]
[359468327,1746043866635,229.45184701,0.00031653,2]
[359468328,1746043866655,1092.73517177,0.00031653,2]
[359468409,1746043932486,-2000.0,0.00040276,30]
[359468410,1746043932511,-2000.0,0.00040276,30]
[359468411,1746043932540,-940.699999,0.00040276,30]
[359468412,1746043932564,-150.0,0.00040276,120]
[359468413,1746043932587,-1503.28990894,0.00040276,120]
[359468414,1746043932610,-2541.97123235,0.00040276,120]
[359468415,1746043932632,-199.46878802,0.00040276,30]
[359468416,1746043932654,-1427.70828899,0.00040276,60]
[359468417,1746043932677,-1854.0,0.00040276,120]
[359468418,1746043932700,-3287.409777,0.00040276,120]
[359468419,1746043932723,-5000.0,0.00040276,120]
[359468420,1746043932745,-271.8,0.00040276,120]
[359468421,1746043932768,-1935.47699204,0.00040276,120]
[359468422,1746043932790,-506.34812963,0.00040276,120]
[359468423,1746043932812,-3296.85152551,0.00040276,45]
[359468424,1746043932835,-1142.6042819,0.00040276,30]
[359468425,1746043932857,-451.7113113,0.00040276,120]
[359468426,1746043932880,-612.30060381,0.00040276,30]
[359468427,1746043932904,-251.702603,0.00040276,60]
[359468428,1746043933031,-1175.60310141,0.00040276,30]
[359468429,1746043933057,-749.86843295,0.00040276,32]
[359468431,1746043933081,-260.31468868,0.00040276,120]
[359468432,1746043933105,-543.23825561,0.00040276,120]
[359468433,1746043933129,-356.46004714,0.00040276,60]
[359468434,1746043933152,-910.05981381,0.00040276,120]
[359468435,1746043933175,-1696.8736971,0.00040276,120]
[359468436,1746043933198,-395.01575726,0.00040276,30]
[359468437,1746043933223,-839.41823047,0.00040276,120]
[359468438,1746043933245,-683.93105251,0.00040276,120]
[359468439,1746043933268,-346.66392817,0.00040276,31]
[359468440,1746043933291,-3300.83081371,0.00040276,60]
[359468441,1746043933313,-240.82074905,0.00040276,120]
[359468442,1746043933336,-286.53400093,0.00040276,120]
[359468443,1746043933358,-556.62797124,0.00040276,30]
[359468444,1746043933384,-1341.82776857,0.00040276,120]
[359468445,1746043933407,-617.21520538,0.00040276,60]
[359468446,1746043933430,-2000.0,0.00040276,120]
[359468447,1746043933453,-242.42829448,0.00040276,30]
[359468448,1746043933476,-1093.61288612,0.00040276,120]
[359468449,1746043933499,-3164.27810715,0.00040276,120]
[359468450,1746043933523,-201.13405486,0.00040276,30]
[359468451,1746043933547,-2581.88843548,0.00040276,120]
[359468452,1746043933575,-847.34792507,0.00040276,60]
[359468453,1746043933599,-686.48004563,0.00040276,120]
[359468455,1746043933623,-1001.09571475,0.00040276,120]
[359468456,1746043933647,-193.89932556,0.00040276,30]
[359468457,1746043933670,-1777.31555891,0.00040276,30]
[359468458,1746043933693,-443.41379367,0.00040276,120]
[359468459,1746043933716,-1601.64204469,0.00040276,120]
[359468460,1746043933741,-355.34006764,0.00040276,120]
[359468461,1746043933765,-423.84739809,0.00040276,120]
[359468462,1746043933789,-214.53519754,0.00040276,120]
[359468463,1746043933814,-314.95598539,0.00040276,120]
[359468464,1746043933841,-202.45977876,0.00040276,120]
[359468465,1746043933866,-1834.09490663,0.00040276,120]
[359468466,1746043933891,-3249.26107959,0.00040276,120]
[359468467,1746043933916,-257.84411606,0.00040276,30]
[359468468,1746043933941,-1770.55330482,0.00040276,30]
[359468469,1746043933965,-169.4628942,0.00040276,120]
[359468470,1746043933990,-592.03533458,0.00040276,120]
[359468471,1746043934013,-1072.87754274,0.00040276,120]
[359468472,1746043934040,-762.0,0.00040276,120]
[359468473,1746043934067,-1878.8281842,0.00040276,35]
[359468474,1746043934095,-2984.0,0.00040276,120]
[359468475,1746043934119,-282834.16724234,0.00040276,60]
[359468476,1746043934144,-1000.0,0.00040276,120]
[359468477,1746043934168,-1000.0,0.00040276,120]
[359468478,1746043934192,-500.0,0.00040276,120]
[359468479,1746043934219,-989.0,0.00040276,120]
[359468480,1746043934243,-406.0,0.00040276,120]
[359468482,1746043934268,-2340.91078606,0.00040276,120]
[359468483,1746043934293,-4635.62524615,0.00040276,120]
[359468484,1746043934397,-2594.0,0.00040276,30]
[359468485,1746043934422,-2594.0,0.00040276,30]
[359468486,1746043934447,-2594.0,0.00040276,30]
[359468487,1746043934471,-2594.0,0.00040276,30]
[359468488,1746043934496,-2594.0,0.00040276,30]
[359468489,1746043934519,-2594.0,0.00040276,30]
[359468490,1746043934543,-2594.0,0.00040276,30]
[359468491,1746043934568,-2594.0,0.00040276,30]
[359468492,1746043934593,-2594.0,0.00040276,30]
[359468493,1746043934617,-2594.0,0.00040276,30]
[359468494,1746043934642,-48375.06314039,0.00040276,30]
[359468495,1746043934665,-73216.14485746,0.00040276,60]
[359468496,1746043934689,-3002.6666168,0.00040276,120]
[359468497,1746043934711,-500.0,0.00040276,30]
[359468498,1746043934734,-500.0,0.00040276,30]
[359468499,1746043934757,-500.0,0.00040276,30]
[359468500,1746043934780,-500.0,0.00040276,30]
[359468501,1746043934803,-500.0,0.00040276,30]
[359468502,1746043934826,-500.0,0.00040276,30]
[359468503,1746043934849,-500.0,0.00040276,30]
[359468504,1746043934873,-500.1797525,0.00040276,30]
[359468505,1746043934897,-1232.0,0.00040276,42]
[359468506,1746043934921,-271.8,0.00040276,120]
[359468508,1746043934945,-200.0,0.00040276,31]
[359468509,1746043934968,-151.0,0.00040276,31]
[359468521,1746043944545,-500.0,0.00036483,60]
[359468522,1746043944662,-500.0,0.00037579,60]
[359468523,1746043944691,-500.0,0.00038675,60]
[359468524,1746043944718,-500.0,0.00039771,60]
[359468525,1746043944748,-840.90604152,0.00040276,30]
[359468526,1746043944775,-670.22,0.00040293,120]
[359468527,1746043944799,-160.2,0.000403,62]
[359468528,1746043944823,-636.0,0.000403,30]
[359468529,1746043944847,-1855.8,0.000403,30]
[359468530,1746043944871,-206.0,0.0004031,30]
[359468531,1746043944896,-155.0,0.00040354,31]
[359468532,1746043944920,-670.22,0.00040493,120]
[359468533,1746043944943,-670.22,0.00040693,120]
[359468534,1746043944966,-200.0,0.00040707,120]
[359468535,1746043944989,-200.0,0.00040797,120]
[359468537,1746043945011,-500.0,0.00040867,60]
[359468538,1746043945034,-670.22,0.00040893,120]
[359468539,1746043945057,-200.0,0.00040966,120]
[359468540,1746043945080,-169.14444859,0.00040989,30]
[359468541,1746043945103,-400.01332908,0.00041,30]
[359468542,1746043945125,-150.5,0.0004107,120]
[359468543,1746043945148,-150.5,0.0004107,120]
[359468544,1746043945171,-1550.0,0.0004107,120]
[359468545,1746043945195,-1550.0,0.0004107,120]
[359468546,1746043945223,-240.4,0.00041076,120]
[359468547,1746043945247,-1558.49,0.00041076,120]
[359468548,1746043945272,-150.5,0.0004108,120]
[359468549,1746043945297,-150.5,0.0004108,120]
[359468550,1746043945320,-219.48,0.0004108,120]
[359468551,1746043945343,-1550.0,0.0004108,120]
[359468552,1746043945368,-1550.0,0.0004108,120]
[359468553,1746043945391,-1550.0,0.0004108,120]
[359468554,1746043945417,-150.5,0.0004109,120]
[359468555,1746043945440,-150.5,0.0004109,120]
[359468556,1746043945464,-150.5,0.0004109,120]
[359468557,1746043945488,-150.5,0.0004109,120]
[359468558,1746043945512,-1550.0,0.0004109,120]
[359468559,1746043945537,-1550.0,0.0004109,120]
[359468560,1746043945565,-1550.0,0.0004109,120]
[359468561,1746043945589,-1550.0,0.0004109,120]
[359468562,1746043945612,-670.22,0.00041093,120]
[359468563,1746043945637,-167.4869763,0.00041095,120]
[359468564,1746043945662,-158.78111609,0.000411,120]
[359468565,1746043945686,-158.78111609,0.000411,120]
[359468566,1746043945710,-158.78111609,0.000411,120]
[359468567,1746043945734,-158.78111609,0.000411,120]
[359468568,1746043945758,-158.78111609,0.000411,120]
[359468569,1746043945782,-158.78111609,0.000411,120]
[359468570,1746043945805,-158.78111609,0.000411,120]
[359468571,1746043945903,-158.78111609,0.000411,120]
[359468572,1746043945928,-158.78111609,0.000411,120]
[359468573,1746043945953,-158.78111609,0.000411,120]
[359468574,1746043945977,-158.78111609,0.000411,120]
[359468575,1746043946000,-158.78111609,0.000411,120]
[359468576,1746043946024,-158.78111609,0.000411,120]
[359468577,1746043946048,-158.78,0.000411,120]
[359468578,1746043946072,-259.34248962,0.000411,120]
[359468579,1746043946096,-259.34248962,0.000411,120]
[359468580,1746043946120,-259.34248962,0.000411,120]
[359468581,1746043946144,-259.34248962,0.000411,120]
[359468582,1746043946167,-259.34248962,0.000411,120]
[359468583,1746043946191,-259.34248962,0.000411,120]
[359468584,1746043946217,-259.34248962,0.000411,120]
[359468585,1746043946242,-259.34248962,0.000411,120]
[359468586,1746043946267,-259.34248962,0.000411,120]
[359468587,1746043946291,-259.34248962,0.000411,120]
[359468588,1746043946315,-259.34248962,0.000411,120]
[359468589,1746043946339,-259.34248962,0.000411,120]
[359468590,1746043946364,-259.34248962,0.000411,120]
[359468591,1746043946388,-259.34248962,0.000411,120]
[359468592,1746043946412,-259.34248962,0.000411,120]
[359468593,1746043946437,-259.34248962,0.000411,120]
[359468594,1746043946460,-259.34248962,0.000411,120]
[359468595,1746043946484,-259.34248962,0.000411,120]
[359468596,1746043946508,-259.34248962,0.000411,120]
[359468597,1746043946532,-259.34,0.000411,120]
[359468598,1746043946559,-159.64747494,0.000411,120]
[359468599,1746043946583,-159.64747494,0.000411,120]
[359468600,1746043946611,-159.64747494,0.000411,120]
[359468601,1746043946638,-159.64747494,0.000411,120]
[359468602,1746043946661,-159.64747494,0.000411,120]
[359468603,1746043946686,-159.64747494,0.000411,120]
[359468604,1746043946710,-159.64747494,0.000411,120]
[359468605,1746043946734,-159.64747494,0.000411,120]
[359468606,1746043946759,-159.64747494,0.000411,120]
[359468607,1746043946783,-159.64747494,0.000411,120]
[359468608,1746043946807,-159.64747494,0.000411,120]
[359468609,1746043946831,-159.64747494,0.000411,120]
[359468610,1746043946858,-159.64747494,0.000411,120]
[359468611,1746043946881,-159.64747494,0.000411,120]
[359468612,1746043946905,-159.64747494,0.000411,120]
[359468613,1746043946927,-159.64747494,0.000411,120]
[359468614,1746043946951,-159.64747494,0.000411,120]
[359468615,1746043946975,-159.64747494,0.000411,120]
[359468616,1746043946998,-159.64747494,0.000411,120]
[359468617,1746043947022,-159.64,0.000411,120]
[359468618,1746043947046,-372.51077486,0.000411,120]
[359468619,1746043947140,-372.51077486,0.000411,120]
[359468620,1746043947163,-372.51077486,0.000411,120]
[359468621,1746043947187,-372.51077486,0.000411,120]
[359468622,1746043947209,-372.51077486,0.000411,120]
[359468623,1746043947233,-372.51077486,0.000411,120]
[359468624,1746043947257,-372.51077486,0.000411,120]
[359468625,1746043947280,-372.51077486,0.000411,120]
[359468626,1746043947304,-372.51077486,0.000411,120]
[359468627,1746043947326,-372.51077486,0.000411,120]
[359468628,1746043947349,-372.51077486,0.000411,120]
[359468629,1746043947373,-372.51077486,0.000411,120]
[359468630,1746043947397,-372.51077486,0.000411,120]
[359468631,1746043947419,-372.51077486,0.000411,120]
[359468632,1746043947442,-372.51077486,0.000411,120]
[359468633,1746043947465,-372.51077486,0.000411,120]
[359468634,1746043947488,-372.51077486,0.000411,120]
[359468635,1746043947513,-372.51077486,0.000411,120]
[359468636,1746043947540,-372.51077486,0.000411,120]
[359468637,1746043947567,-372.51,0.000411,120]
[359468638,1746043947592,-265.42190499,0.000411,120]
[359468639,1746043947620,-265.42190499,0.000411,120]
[359468640,1746043947646,-265.42190499,0.000411,120]
[359468641,1746043947671,-265.42190499,0.000411,120]
[359468642,1746043947695,-265.42190499,0.000411,120]
[359468643,1746043947720,-265.42190499,0.000411,120]
[359468644,1746043947746,-265.42190499,0.000411,120]
[359468645,1746043947771,-265.42190499,0.000411,120]
[359468646,1746043947797,-265.42190499,0.000411,120]
[359468647,1746043947822,-265.42190499,0.000411,120]
[359468648,1746043947848,-265.42190499,0.000411,120]
[359468649,1746043947875,-265.42190499,0.000411,120]
[359468650,1746043947900,-265.42190499,0.000411,120]
[359468651,1746043947925,-265.42190499,0.000411,120]
[359468652,1746043947948,-265.42190499,0.000411,120]
[359468653,1746043947972,-265.42190499,0.000411,120]
[359468654,1746043947996,-265.42190499,0.000411,120]
[359468655,1746043948021,-265.42190499,0.000411,120]
[359468656,1746043948044,-265.42190499,0.000411,120]
[359468657,1746043948068,-265.42,0.000411,120]
[359468658,1746043948092,-619.31777831,0.000411,120]
[359468659,1746043948117,-619.31777831,0.000411,120]
[359468660,1746043948140,-619.31777831,0.000411,120]
[359468661,1746043948162,-619.31777831,0.000411,120]
[359468662,1746043948185,-619.31777831,0.000411,120]
[359468663,1746043948209,-619.31777831,0.000411,120]
[359468664,1746043948233,-619.31777831,0.000411,120]
[359468665,1746043948327,-619.31777831,0.000411,120]
[359468666,1746043948350,-619.31777831,0.000411,120]
[359468667,1746043948373,-619.31777831,0.000411,120]
[359468668,1746043948395,-619.31777831,0.000411,120]
[359468669,1746043948417,-619.31777831,0.000411,120]
[359468670,1746043948439,-619.31777831,0.000411,120]
[359468671,1746043948462,-619.31777831,0.000411,120]
[359468672,1746043948485,-619.31777831,0.000411,120]
[359468673,1746043948508,-619.31777831,0.000411,120]
[359468674,1746043948532,-619.31777831,0.000411,120]
[359468675,1746043948558,-619.31777831,0.000411,120]
[359468676,1746043948583,-619.31777831,0.000411,120]
[359468677,1746043948607,-619.31,0.000411,120]
[359468678,1746043948632,-200.0,0.00041171,120]
[359468679,1746043948656,-200.0,0.00041212,120]
[359468680,1746043948680,-200.0,0.00041275,120]
[359468681,1746043948703,-670.22,0.00041293,120]
[359468682,1746043948727,-797.5,0.00041369,30]
[359468683,1746043948753,-200.0,0.0004147,120]
[359468684,1746043948777,-670.22,0.00041493,120]
[359468685,1746043948801,-200.0,0.00041499,120]
[359468686,1746043948824,-670.22,0.00041693,120]
[359468687,1746043948848,-6714.22,0.000417,30]
[359468688,1746043948871,-4085.04,0.000417,30]
[359468689,1746043948896,-200.0,0.00041712,120]
[359468690,1746043948920,-975.4,0.00041744,30]
[359468691,1746043948943,-200.0,0.00041757,120]
[359468692,1746043948968,-670.22,0.00041893,120]
[359468693,1746043948991,-1855.8,0.000419,30]
[359468694,1746043949014,-797.5,0.00041917,31]
[359468695,1746043949038,-500.0,0.00041963,60]
[359468696,1746043949061,-1137.54056256,0.00042,30]
[359468697,1746043949085,-678.21145682,0.00042,120]
[359468698,1746043949109,-1097.78747022,0.00042,120]
[359468699,1746043949134,-300.0,0.00042,120]
[359468700,1746043949158,-100000.0,0.00042,30]
[359468701,1746043949183,-75076.0,0.00042,30]
[359468702,1746043949207,-100000.0,0.00042,30]
[359468703,1746043949232,-500.0,0.00042,120]
[359468704,1746043949257,-2747.90111004,0.00042,120]
[359468705,1746043949282,-264.33347544,0.00042,30]
[359468706,1746043949307,-670.22,0.00042093,120]
[359468707,1746043949331,-200.0,0.00042184,120]
[359468708,1746043949356,-200.0,0.0004223,120]
[359468709,1746043949379,-670.22,0.00042293,120]
[359468710,1746043949472,-940.699999,0.000423,31]
[359468711,1746043949498,-200.0,0.00042318,120]
[359468712,1746043949523,-500.0,0.00042335,30]
[359468713,1746043949551,-797.5,0.00042465,32]
[359468714,1746043949579,-670.22,0.00042493,120]
[359468715,1746043949611,-670.22,0.00042693,120]
[359468716,1746043949641,-670.22,0.00042893,120]
[359468717,1746043949668,-269.55321705,0.00043,30]
[359468718,1746043949694,-3857.05888345,0.00043,120]
[359468719,1746043949719,-1385.87875829,0.00043,120]
[359468720,1746043949743,-7000.0,0.00043,30]
[359468721,1746043949768,-387.29939204,0.00043,120]
[359468722,1746043949793,-665.0,0.00043,120]
[359468723,1746043949817,-151.0,0.00043,120]
[359468724,1746043949843,-797.5,0.00043013,33]
[359468725,1746043949869,-500.0,0.00043059,60]
[359468726,1746043949894,-670.22,0.00043093,120]
[359468727,1746043949919,-6714.22,0.000431,30]
[359468728,1746043949943,-4085.04,0.000431,30]
[359468729,1746043949968,-670.22,0.00043293,120]
[359468730,1746043949993,-670.22,0.00043493,120]
[359468731,1746043950017,-1855.8,0.000435,30]
[359468732,1746043950041,-797.5,0.00043561,34]
[359468733,1746043950067,-670.22,0.00043693,120]
[359468735,1746043954703,39453.39,0.000403,30]
[359468736,1746043955152,39453.39,0.000418,30]
[359468737,1746043955563,39453.39,0.000433,30]
[359468815,1746044838101,-1000.0,0.00027297,2]
[359468816,1746044838124,-613.484493,0.00027397,2]
[359468817,1746044838145,-159.0,0.00027397,3]
[359468818,1746044838168,-1478.813098,0.00031652,3]
[359468819,1746044842093,-121.186902,0.00031652,3]
[359468820,1746044842113,-2128.31331353,0.00031653,2]
[359468821,1746044842134,-236.452022,0.00031653,2]
[359468822,1746044842155,-141.74672748,0.0003315,2]
[359468824,1746044892313,-2941.0,0.00038,120]
[359468832,1746044923899,150.999999,0.0002,120]
[359468833,1746044925821,1509.0,0.00015,2]
[359468834,1746044925883,3225.00919971,0.00015,2]
[359468835,1746044928191,-159.9791212,0.0002,7]
[359468836,1746044928214,-5.26584983,0.00021,2]
[359468838,1746044936096,-145.73414917,0.00021,2]
[359468839,1746044951111,-1000.0,0.00027197,2]
[359468840,1746044951131,-222.75435154,0.0002889,2]
[359468841,1746044951152,-250.60428211,0.0002899,2]
[359468842,1746044951173,-300.0,0.00028999,2]
[359468843,1746044951193,-22255.87478182,0.00029,3]
[359468844,1746044951214,-872.91322294,0.00029,2]
[359468845,1746044951233,-7415.39941802,0.00029,2]
[359468846,1746044951253,-583.85893899,0.000299,2]
[359468847,1746044951274,-198.86501388,0.0002999,2]
[359468848,1746044953108,-1406.50965231,0.0002999,2]
[359468852,1746044961136,-1220.34667832,0.0002999,2]
[359468853,1746044961160,-500.0,0.00029999,2]
[359468854,1746044961184,-311.49001065,0.00029999,2]
[359468855,1746044961207,-500.0,0.00029999,2]
[359468856,1746044961231,-500.0,0.00029999,2]
[359468857,1746044961253,-5054.82684383,0.0003,7]
[359468858,1746044972204,-499.99999999,0.00029999,2]
[359468859,1746044972224,-17786.02038531,0.0003,7]
[359468860,1746044972250,-52065.70351683,0.0003,7]
[359468883,1746045036629,-1000.0,0.00027097,2]
[359468884,1746045036641,-1237.61302906,0.0003,7]
[359468885,1746045036653,-1447.18289762,0.0003,7]
[359468886,1746045036665,-937.66206399,0.0003,7]
[359468887,1746045036677,-301.63267988,0.0003099,2]
[359468888,1746045036687,-500.0,0.00031,2]
[359468890,1746045036697,-1600.0,0.00031373,3]
[359468892,1746045036706,-438.46774613,0.00031374,2]
[359468894,1746045036719,-145.39119285,0.00031374,2]
[359468896,1746045036728,-155.15608534,0.00032434,2]
[359468899,1746045036738,-583.85893898,0.00032849,2]
[359468901,1746045036747,-400.0,0.00033099,2]
[359468903,1746045036757,-979.9469947,0.000331,7]
[359468907,1746045038212,-2083.92052761,0.000331,7]
[359468914,1746045038270,-204.16247769,0.000331,7]
[359468915,1746045038280,-3758.61008875,0.0003315,2]
[359468916,1746045038290,-613.484493,0.00033165,2]
[359468918,1746045038300,-418.0,0.00033906,3]
[359468920,1746045038310,-290.0,0.00034197,2]
[359468922,1746045038320,-583.85893898,0.00034323,2]
[359468924,1746045038329,-200.705441,0.0003443,2]
[359468926,1746045038339,-620.2598106,0.0003443,2]
[359468928,1746045038348,-24900.0,0.0003443,2]
[359468930,1746045038358,-500.0,0.000345,5]
[359468932,1746045038369,-47499.21270024,0.00035,2]
[359468934,1746045038379,-264.33347444,0.00035,30]
[359468936,1746045038389,-27617.38,0.00035,30]
[359468938,1746045038399,-2825.72134451,0.00035028,2]
[359468940,1746045038408,-6942.43453892,0.00035038,2]
[359468942,1746045038418,-182.04053198,0.00035038,2]
[359468944,1746045038428,-160.0,0.00035038,2]
[359468946,1746045038438,-236.452022,0.00035078,2]
[359468948,1746045038447,-560.0,0.00035559,2]
[359468950,1746045038457,-583.85893898,0.00035798,2]
[359468952,1746045038467,-3687.6022185,0.00035803,2]
[359468954,1746045038477,-160.0,0.00036049,3]
[359468956,1746045038486,-159.77821815,0.00036482,7]
[359468959,1746045038496,-500.0,0.00036482,15]
[359468961,1746045038507,-187.68837353,0.00036482,15]
[359468963,1746045038516,-360.07084591,0.00036482,7]
[359468965,1746045038526,-349.68349198,0.00036482,15]
[359468967,1746045038535,-5000.0,0.00036483,2]
[359468969,1746045038546,-583.85893898,0.00037272,2]
[359468971,1746045038556,-187.40330025,0.00037524,48]
[359468973,1746045038567,-12500.0,0.00037574,5]
[359468975,1746045038578,-161.0,0.00037808,8]
[359468977,1746045038588,-0.81270529,0.00038,120]
[359468979,1746045038599,-783.0,0.00038203,2]
[359468981,1746045038609,-167.26927626,0.00038256,2]
[359468983,1746045038619,-500.0,0.00038273,5]
[359468985,1746045038628,-500.0,0.00038273,5]
[359468987,1746045038638,-500.45492379,0.00038273,5]
[359468989,1746045038648,-500.0,0.00038273,5]
[359468991,1746045038657,-500.0,0.00038273,5]
[359468993,1746045038667,-500.59675315,0.00038273,5]
[359468996,1746045038677,-500.0,0.00038273,5]
[359468998,1746045038687,-500.0,0.00038273,3]
[359469000,1746045038696,-500.0,0.00038273,5]
[359469002,1746045038706,-437.2249175,0.00038273,5]
[359469004,1746045038715,-500.0,0.00038273,5]
[359469006,1746045038724,-500.0,0.00038273,5]
[359469007,1746045038733,-205.42,0.0003829,3]
[359469010,1746045038744,-616.3,0.0003829,3]
[359469012,1746045038753,-8477.16403353,0.0003829,3]
[359469014,1746045038763,-119160.69,0.000383,2]
[359469016,1746045038772,-154.1030123,0.00038302,4]
[359469018,1746045038781,-28257.2134451,0.00038346,3]
[359469020,1746045038791,-400.0,0.00038356,12]
[359469022,1746045038801,-400.0,0.00038356,12]
[359469024,1746045038810,-400.0,0.00038356,12]
[359469026,1746045038819,-400.0,0.00038356,12]
[359469028,1746045038829,-400.0,0.00038356,12]
[359469030,1746045038838,-400.0,0.00038356,12]
[359469032,1746045038848,-400.0,0.00038356,12]
[359469034,1746045038857,-400.0,0.00038356,12]
[359469036,1746045038871,-400.0,0.00038356,12]
[359469038,1746045038881,-400.0,0.00038356,12]
[359469040,1746045038890,-400.0,0.00038356,12]
[359469042,1746045038899,-400.0,0.00038356,12]
[359469044,1746045038910,-400.0,0.00038356,12]
[359469046,1746045038919,-400.0,0.00038356,12]
[359469048,1746045038928,-400.0,0.00038356,12]
[359469050,1746045038939,-400.0,0.00038356,12]
[359469052,1746045038948,-400.0,0.00038356,12]
[359469054,1746045038957,-206.73751043,0.00038356,12]
[359469056,1746045038967,-400.0,0.00038356,12]
[359469058,1746045038976,-400.0,0.00038356,12]
[359469060,1746045038985,-400.0,0.00038356,12]
[359469062,1746045038995,-400.0,0.00038356,12]
[359469065,1746045039009,-400.0,0.00038356,12]
[359469067,1746045039018,-432.89593742,0.00038356,12]
[359469069,1746045039028,-400.0,0.00038356,12]
[359469071,1746045039038,-400.0,0.00038356,12]
[359469073,1746045039047,-400.0,0.00038356,12]
[359469075,1746045039057,-400.0,0.00038356,12]
[359469077,1746045039067,-400.0,0.00038356,12]
[359469079,1746045039076,-400.0,0.00038356,12]
[359469081,1746045039087,-400.0,0.00038356,12]
[359469083,1746045039097,-400.0,0.00038356,12]
[359469085,1746045039107,-500.0,0.00038356,12]
[359469087,1746045039117,-401.41003549,0.00038356,12]
[359469089,1746045039126,-400.0,0.00038356,7]
[359469091,1746045039136,-400.0,0.00038356,12]
[359469093,1746045039145,-400.0,0.00038356,12]
[359469095,1746045039155,-400.0,0.00038356,12]
[359469098,1746045039165,-400.0,0.00038356,12]
[359469099,1746045039175,-400.0,0.00038356,12]
[359469101,1746045039185,-500.74848551,0.00038356,12]